bitfinex-derivatives/quotes_BTCF0:USTF0_20250811
["timestamp","ask_amount","ask_price","bid_price","bid_amount"]
[1754952063791,0.53311839,118740.0,118730.0,1.29064853]
[1754952063984,0.53311839,118740.0,118730.0,0.9840502]
[1754952064193,0.53311839,118740.0,118730.0,1.29064853]
[1754952065287,0.51491827,118740.0,118730.0,1.29164853]
[1754952065491,0.51391827,118740.0,118730.0,1.29364853]
[1754952065991,0.51391827,118740.0,118730.0,1.29164853]
[1754952067496,0.06890227,118740.0,118730.0,1.65244853]
[1754952067896,0.0001,118740.0,118730.0,1.82088852]
[1754952068193,0.76463756,118770.0,118760.0,0.0841989]
[1754952068394,0.81080756,118770.0,118760.0,0.9127589]
[1754952068594,0.6252781,118770.0,118760.0,1.29048723]
[1754952068784,0.2644781,118770.0,118760.0,1.29048723]
[1754952069491,0.33477134,118770.0,118760.0,1.29048723]
[1754952069688,0.33487134,118770.0,118760.0,1.29058723]
[1754952069896,0.33587134,118770.0,118760.0,1.29058723]
[1754952070194,0.24917134,118770.0,118760.0,1.29058723]
[1754952070588,0.28411134,118770.0,118760.0,1.29058723]
[1754952070991,0.29909134,118770.0,118760.0,1.29058723]
[1754952071194,0.29909134,118770.0,118760.0,1.29839526]
[1754952071490,0.32063134,118770.0,118760.0,1.29839526]
[1754952071692,0.31763134,118770.0,118760.0,1.29839526]
[1754952071891,0.31763134,118770.0,118760.0,0.99279693]
[1754952072097,0.69367134,118770.0,118760.0,0.99279693]
[1754952072395,0.33287134,118770.0,118760.0,0.99279693]
[1754952073189,0.69367134,118770.0,118760.0,0.99279693]
[1754952074095,0.33287134,118770.0,118760.0,0.99279693]
[1754952076798,0.69367134,118770.0,118760.0,0.99279693]
[1754952076994,1.01917344,118770.0,118760.0,0.07371]
[1754952077200,1.04411344,118770.0,118760.0,0.02603]
[1754952077394,1.04411344,118770.0,118760.0,0.0011]
[1754952077595,1.82483344,118770.0,118760.0,0.0011]
[1754952078302,2.29983177,118770.0,118760.0,0.0011]
[1754952078502,2.43963177,118770.0,118760.0,0.0011]
[1754952078702,2.13303344,118770.0,118760.0,0.0011]
[1754952079100,2.13303344,118770.0,118740.0,0.02493]
[1754952079101,0.084206,118750.0,118740.0,0.02493]
[1754952079301,0.084213,118740.0,118730.0,0.9953586]
[1754952079498,0.084213,118740.0,118730.0,1.0433986]
[1754952079499,0.87052133,118740.0,118730.0,1.0433986]
[1754952079896,0.87052133,118740.0,118730.0,1.0674986]
[1754952080095,0.87052133,118740.0,118730.0,0.89906]
[1754952080300,0.87062133,118740.0,118730.0,0.89916]
[1754952080502,0.87062133,118740.0,118730.0,0.11848]
[1754952080703,0.87062133,118740.0,118730.0,0.2027001]
[1754952080902,0.87062133,118740.0,118730.0,0.11848]
[1754952081906,0.87062133,118740.0,118730.0,0.07324]
[1754952082209,0.87062133,118740.0,118730.0,0.04083]
[1754952084110,0.87062133,118740.0,118730.0,0.1250501]
[1754952085007,0.87062133,118740.0,118730.0,0.1566601]
[1754952085207,0.87062133,118740.0,118730.0,0.1890701]
[1754952085407,0.87062133,118740.0,118730.0,0.2038101]
[1754952086313,0.564023,118740.0,118730.0,0.2038101]
[1754952086613,0.87062133,118740.0,118730.0,0.2038101]
[1754952091413,0.564023,118740.0,118730.0,0.2038101]
[1754952091613,0.87062133,118740.0,118730.0,0.2038101]
[1754952095224,0.50982133,118740.0,118730.0,0.2038101]
[1754952095418,0.87062133,118740.0,118730.0,0.2038101]
[1754952095624,0.50982133,118740.0,118730.0,0.2038101]
[1754952095823,0.87062133,118740.0,118730.0,0.2038101]
[1754952096124,0.50982133,118740.0,118730.0,0.2038101]
[1754952096324,0.203223,118740.0,118730.0,0.2038101]
[1754952096621,0.09548,118740.0,118730.0,0.51040843]
[1754952096814,0.0001,118740.0,118730.0,0.87120843]
[1754952097725,0.0001,118740.0,118730.0,0.51040843]
[1754952097928,0.04369,118740.0,118730.0,0.51040843]
[1754952098115,0.04369,118740.0,118730.0,0.87120843]
[1754952098319,0.0097,118740.0,118730.0,0.87120843]
[1754952098518,0.0001,118740.0,118730.0,0.87120843]
[1754952099529,0.0001,118740.0,118730.0,1.02075939]
[1754952100428,0.0841986,118760.0,118750.0,0.0842057]
[1754952100731,0.0937986,118760.0,118750.0,1.54258043]
[1754952100930,0.1795786,118760.0,118750.0,1.54258043]
[1754952101835,0.1805786,118760.0,118750.0,1.1517764]
[1754952102128,0.2042086,118760.0,118750.0,1.1518764]
[1754952102629,0.1806786,118760.0,118750.0,1.1518764]
[1754952103330,0.1826786,118760.0,118750.0,1.1518764]
[1754952103930,0.1185486,118760.0,118750.0,1.1518764]
[1754952104130,0.1525386,118760.0,118750.0,1.1518764]
[1754952104328,0.03235,118760.0,118750.0,1.45947473]
[1754952104530,0.0107,118760.0,118750.0,1.45947473]
[1754952104739,0.0938986,118760.0,118750.0,1.45947473]
[1754952105236,0.0001,118760.0,118750.0,1.82027473]
[1754952105631,0.0842986,118760.0,118750.0,1.82027473]
[1754952105930,0.0001,118760.0,118750.0,1.82027473]
[1754952106338,0.0842986,118760.0,118750.0,1.82027473]
[1754952106540,0.0842986,118760.0,118750.0,1.45947473]
[1754952108031,0.1278886,118760.0,118750.0,1.45947473]
[1754952108433,0.1420686,118760.0,118750.0,1.45947473]
[1754952110938,0.0938986,118760.0,118750.0,1.45947473]
[1754952111241,0.1787186,118760.0,118750.0,1.1528764]
[1754952112139,0.1322886,118760.0,118750.0,0.3721964]
[1754952112344,0.1791086,118760.0,118750.0,1.1527564]
[1754952112538,0.5399086,118760.0,118750.0,1.1527564]
[1754952113242,0.1791086,118760.0,118750.0,1.1527564]
[1754952113442,0.5399086,118760.0,118750.0,1.1527564]
[1754952113742,0.1791086,118760.0,118750.0,1.1527564]
[1754952115146,0.87117693,118760.0,118750.0,1.1525764]
[1754952116437,0.87217693,118760.0,118750.0,1.1515764]
[1754952116845,0.51137693,118760.0,118750.0,1.1515764]
[1754952117047,0.2047786,118760.0,118750.0,1.1515764]
[1754952117241,0.5655786,118760.0,118750.0,1.1515764]
[1754952117643,0.2047786,118760.0,118750.0,1.1515764]
[1754952117843,0.0011,118760.0,118750.0,1.45817473]
[1754952118043,0.0021,118760.0,118750.0,1.45817473]
[1754952118939,0.0021,118760.0,118750.0,1.1515764]
[1754952119137,0.0021,118760.0,118750.0,1.45817473]
[1754952119548,0.0011,118760.0,118750.0,1.45917473]
[1754952119850,0.0001,118760.0,118750.0,1.27557693]
[1754952120151,0.0001,118760.0,118750.0,1.35978263]
[1754952121447,0.0842986,118760.0,118750.0,1.35978263]
[1754952121647,0.0842986,118760.0,118750.0,1.35878263]
[1754952121848,0.0842986,118760.0,118750.0,1.38884263]
[1754952122048,0.0001,118760.0,118750.0,1.38884263]
[1754952122348,0.0001,118760.0,118750.0,1.74964263]
[1754952123750,0.0001,118760.0,118750.0,1.89919359]
[1754952124251,0.1683718,118780.0,118770.0,0.0841915]
[1754952124448,0.6486518,118780.0,118770.0,0.1985115]
[1754952124645,0.6486518,118780.0,118770.0,0.9789915]
[1754952124849,0.2878518,118780.0,118770.0,0.9789915]
[1754952125048,0.6486518,118780.0,118770.0,0.9789915]
[1754952125445,0.6486518,118780.0,118770.0,0.9932224]
[1754952125645,0.6517518,118780.0,118770.0,0.9932224]
[1754952125848,0.2909518,118780.0,118770.0,0.9932224]
[1754952127355,0.2899518,118780.0,118770.0,0.9932224]
[1754952127551,0.2889518,118780.0,118770.0,0.9932224]
[1754952127750,0.2899518,118780.0,118770.0,0.9932224]
[1754952128151,0.12158,118780.0,118770.0,0.9932224]
[1754952128352,0.12158,118780.0,118770.0,1.29982073]
[1754952128958,0.1916044,118780.0,118770.0,1.29982073]
[1754952129159,0.17561312,118780.0,118770.0,1.29982073]
[1754952130459,0.25979752,118780.0,118770.0,1.29982073]
[1754952131354,0.15447752,118780.0,118770.0,1.29982073]
[1754952131860,0.17914752,118780.0,118770.0,1.29982073]
[1754952132657,0.07029312,118780.0,118770.0,1.29982073]
[1754952132864,0.0021,118780.0,118770.0,1.29982073]
[1754952133459,0.0021,118780.0,118770.0,1.66062073]
[1754952134062,0.0011,118780.0,118770.0,1.66162073]
[1754952134556,0.0001,118780.0,118770.0,1.66162073]
[1754952135749,0.0001,118780.0,118770.0,1.30082073]
[1754952136663,0.0001,118780.0,118770.0,1.66162073]
[1754952137563,0.0001,118780.0,118770.0,1.30082073]
[1754952138264,0.0001,118780.0,118770.0,1.66162073]
[1754952142864,0.0001,118780.0,118770.0,1.30082073]
[1754952143467,0.0001,118780.0,118770.0,1.66162073]
[1754952147870,0.0001,118780.0,118770.0,1.3550224]
[1754952148071,0.0001,118780.0,118770.0,1.66162073]
[1754952148463,0.0001,118780.0,118770.0,0.88114073]
[1754952148660,0.0001,118780.0,118770.0,1.66138073]
[1754952156675,0.0842844,118780.0,118770.0,0.9958624]
[1754952156878,0.2040844,118780.0,118770.0,0.9958624]
[1754952157884,0.2040844,118780.0,118770.0,1.30246073]
[1754952158282,0.2040844,118780.0,118770.0,0.9958624]
[1754952158484,0.2040844,118780.0,118770.0,1.30246073]
[1754952158781,0.1894444,118780.0,118770.0,1.30246073]
[1754952158968,0.2040844,118780.0,118770.0,1.30246073]
[1754952159174,0.2040844,118780.0,118770.0,0.9958624]
[1754952159371,0.2040844,118780.0,118770.0,1.30246073]
[1754952159778,0.2040844,118780.0,118770.0,0.9958624]
[1754952159986,0.2040844,118780.0,118770.0,1.30246073]
[1754952162785,0.2040844,118780.0,118770.0,0.9958624]
[1754952162986,0.2040844,118780.0,118770.0,1.30246073]
[1754952164382,0.2040844,118780.0,118770.0,0.52034073]
[1754952164578,0.2040844,118780.0,118770.0,1.30246073]
[1754952166481,0.1894444,118780.0,118770.0,0.9958624]
[1754952166789,0.2040844,118780.0,118770.0,0.9958624]
[1754952167082,0.87148273,118780.0,118770.0,0.9132415]
[1754952167278,0.87148273,118780.0,118770.0,0.9577215]
[1754952167679,0.87148273,118780.0,118770.0,0.001]
[1754952167879,0.8899747,118780.0,118770.0,0.78288]
[1754952168281,0.89144043,118780.0,118770.0,0.78288]
[1754952168686,1.03124043,118780.0,118770.0,0.78288]
[1754952168884,1.03124043,118780.0,118770.0,0.8670715]
[1754952169279,1.03124043,118780.0,118770.0,0.8660715]
[1754952169480,1.03324043,118780.0,118770.0,0.8660715]
[1754952169988,0.7276421,118780.0,118770.0,0.8660715]
[1754952170285,1.03424043,118780.0,118770.0,0.8660715]
[1754952171781,1.03424043,118780.0,118770.0,0.8961315]
[1754952171988,1.03424043,118780.0,118770.0,0.81194]
[1754952172588,1.03424043,118780.0,118770.0,0.8961315]
[1754952173378,1.39504043,118780.0,118770.0,0.8961315]
[1754952173581,1.39504043,118780.0,118770.0,0.83552]
[1754952173989,1.39504043,118780.0,118770.0,0.85065]
[1754952175189,1.39504043,118780.0,118770.0,0.78124]
[1754952180598,1.39504043,118780.0,118760.0,0.0001]
[1754952180599,0.0841915,118770.0,118760.0,0.0001]
[1754952180800,0.0842057,118750.0,118740.0,0.01734829]
[1754952181104,0.87040403,118750.0,118740.0,0.95081109]
[1754952181306,0.87040403,118750.0,118740.0,0.99765109]
[1754952182697,0.87040403,118750.0,118740.0,0.99965109]
[1754952182905,0.87050403,118750.0,118740.0,0.99975109]
[1754952183206,0.5639057,118750.0,118740.0,1.00075109]
[1754952183907,0.0863057,118750.0,118740.0,1.30434942]
[1754952184100,0.0863057,118750.0,118740.0,0.99775109]
[1754952184410,0.0863057,118750.0,118740.0,1.30434942]
[1754952185000,0.1099957,118750.0,118740.0,1.30434942]
[1754952185403,0.1099957,118750.0,118740.0,0.99775109]
[1754952185707,0.4697957,118750.0,118740.0,1.30434942]
[1754952185899,0.4687957,118750.0,118740.0,1.30534942]
[1754952186096,0.1079957,118750.0,118740.0,1.30534942]
[1754952186295,0.0001,118750.0,118740.0,1.66614942]
[1754952186499,0.0843057,118750.0,118740.0,1.66614942]
[1754952186706,0.0001,118750.0,118740.0,1.66614942]
[1754952187012,0.0843057,118750.0,118740.0,1.66614942]
[1754952187308,0.0001,118750.0,118740.0,1.66614942]
[1754952189309,0.0843057,118750.0,118740.0,1.66614942]
[1754952189509,0.0001,118750.0,118740.0,1.66614942]
[1754952190505,0.0843057,118750.0,118740.0,1.66614942]
[1754952190904,0.2031057,118750.0,118740.0,1.66614942]
[1754952191107,0.2031057,118750.0,118740.0,1.30534942]
[1754952193207,0.2031057,118750.0,118740.0,0.99875109]
[1754952193507,0.2031057,118750.0,118740.0,1.30534942]
[1754952194107,0.0843057,118750.0,118740.0,1.30534942]
[1754952194505,0.0001,118750.0,118740.0,1.66614942]
[1754952196211,0.0843057,118750.0,118740.0,1.30534942]
[1754952196603,0.2031057,118750.0,118740.0,0.99875109]
[1754952201915,0.2031057,118750.0,118740.0,1.35955109]
[1754952202213,0.1560257,118750.0,118740.0,1.66614942]
[1754952202411,0.0001,118750.0,118740.0,1.66614942]
[1754952202910,0.0843057,118750.0,118740.0,1.66614942]
[1754952203112,0.0001,118750.0,118740.0,1.66614942]
[1754952203909,0.0001,118750.0,118740.0,1.35955109]
[1754952204111,0.0843034,118750.0,118740.0,1.66614942]
[1754952204510,0.1080834,118750.0,118740.0,1.66614942]
[1754952205216,0.0843034,118750.0,118740.0,1.66614942]
[1754952206208,0.0843034,118750.0,118740.0,1.81570038]
[1754952206908,0.0843034,118750.0,118740.0,1.66614942]
[1754952207616,0.0843034,118750.0,118740.0,1.81570038]
[1754952207818,0.0843034,118750.0,118740.0,1.50910205]
[1754952208018,0.0843034,118750.0,118740.0,1.81570038]
[1754952210526,0.0001,118750.0,118740.0,1.50910205]
[1754952210725,0.0843031,118750.0,118740.0,1.50910205]
[1754952210925,0.2021531,118750.0,118740.0,1.51010205]
[1754952213430,0.1553733,118750.0,118740.0,1.81670038]
[1754952213621,0.0843033,118750.0,118740.0,1.81670038]
[1754952213820,0.0843033,118750.0,118740.0,1.51010205]
[1754952214026,0.0843033,118750.0,118740.0,1.81670038]
[1754952218122,0.0843033,118750.0,118740.0,1.51010205]
[1754952218325,0.1881233,118750.0,118740.0,1.81670038]
[1754952218525,0.2021533,118750.0,118740.0,1.81670038]
[1754952219129,0.1881233,118750.0,118740.0,1.81670038]
[1754952219428,0.2021533,118750.0,118740.0,1.81670038]
[1754952219930,0.1881233,118750.0,118740.0,1.81670038]
[1754952220129,0.1553733,118750.0,118740.0,1.81670038]
[1754952220630,0.1080833,118750.0,118740.0,1.81670038]
[1754952220931,0.0001,118750.0,118740.0,1.81670038]
[1754952222722,0.0843033,118750.0,118740.0,1.81670038]
[1754952223131,0.1080833,118750.0,118740.0,1.81670038]
[1754952223630,0.0843033,118750.0,118740.0,1.81670038]
[1754952224124,0.1553733,118750.0,118740.0,1.81670038]
[1754952224319,0.2021533,118750.0,118740.0,1.81670038]
[1754952224723,0.2021533,118750.0,118740.0,1.51010205]
[1754952226332,0.1881233,118750.0,118740.0,1.51010205]
[1754952226528,0.1881233,118750.0,118740.0,1.81670038]
[1754952227430,0.1080833,118750.0,118740.0,1.81670038]
[1754952227632,0.0843033,118750.0,118740.0,1.81670038]
[1754952227824,0.0843033,118750.0,118740.0,1.79935209]
[1754952228932,0.0843033,118750.0,118740.0,1.49275376]
[1754952229132,0.2034833,118750.0,118740.0,1.79935209]
[1754952229522,0.1892633,118750.0,118740.0,1.79935209]
[1754952229726,0.0843033,118750.0,118740.0,1.79935209]
[1754952230432,0.0001,118750.0,118740.0,1.79935209]
[1754952230834,0.0843034,118750.0,118740.0,1.79935209]
[1754952231133,0.0843034,118750.0,118740.0,1.64980113]
[1754952232331,0.0001,118750.0,118740.0,1.64980113]
[1754952233337,0.3567069,118780.0,118770.0,0.0841886]
[1754952233634,0.4145169,118780.0,118770.0,0.9811786]
[1754952233835,0.4767169,118780.0,118770.0,0.9811786]
[1754952234538,0.4787169,118780.0,118770.0,0.9811786]
[1754952234730,0.4788169,118780.0,118770.0,1.00267924]
[1754952235137,0.4808169,118780.0,118770.0,1.00267924]
[1754952236039,0.4778169,118780.0,118770.0,1.00267924]
[1754952236239,0.4788169,118780.0,118770.0,1.00267924]
[1754952237139,0.78541523,118780.0,118770.0,1.00267924]
[1754952237340,0.78541523,118780.0,118770.0,0.9811786]
[1754952237643,0.4788169,118780.0,118770.0,0.9811786]
[1754952238233,0.4788169,118780.0,118770.0,0.89699]
[1754952238434,0.4788169,118780.0,118770.0,0.981179]
[1754952239035,0.4788169,118780.0,118770.0,0.89699]
[1754952239236,0.4788169,118780.0,118770.0,0.981179]
[1754952239535,0.4788169,118780.0,118770.0,0.89699]
[1754952239736,0.4788169,118780.0,118770.0,0.981179]
[1754952241345,0.8396169,118780.0,118770.0,0.981179]
[1754952242045,0.8396169,118780.0,118770.0,0.89699]
[1754952242242,0.8396169,118780.0,118770.0,0.9811789]
[1754952242945,0.4788169,118780.0,118770.0,0.9811789]
[1754952243143,0.8396169,118780.0,118770.0,0.9811789]
[1754952244935,1.14621523,118780.0,118770.0,0.9565489]
[1754952245142,1.14621523,118780.0,118770.0,0.9811789]
[1754952245346,1.14621523,118780.0,118770.0,0.89699]
[1754952246440,0.084189,118770.0,118760.0,0.31777308]
[1754952246646,0.87169733,118770.0,118760.0,1.08678738]
[1754952247145,0.565099,118770.0,118760.0,1.08678738]
[1754952247349,0.204299,118770.0,118760.0,1.08678738]
[1754952247550,0.565099,118770.0,118760.0,1.08678738]
[1754952248442,0.565099,118770.0,118760.0,1.08778738]
[1754952249051,0.204299,118770.0,118760.0,1.08778738]
[1754952250250,0.204299,118770.0,118760.0,1.39438571]
[1754952251949,0.190079,118770.0,118760.0,1.39438571]
[1754952252444,0.084289,118770.0,118760.0,1.39438571]
[1754952253051,0.084289,118770.0,118760.0,1.75518571]
[1754952255452,0.084289,118770.0,118760.0,1.90473667]
[1754952257749,0.084289,118770.0,118760.0,1.61500269]
[1754952257950,0.084289,118770.0,118760.0,1.92160102]
[1754952259556,0.107849,118770.0,118760.0,1.92160102]
[1754952259750,0.162389,118770.0,118760.0,1.92160102]
[1754952260056,0.188749,118770.0,118760.0,1.92160102]
[1754952262646,0.084289,118770.0,118760.0,1.92160102]
[1754952263049,0.0001,118770.0,118760.0,1.92160102]
[1754952263657,0.0842885,118770.0,118760.0,1.92160102]
[1754952264257,0.0001,118770.0,118760.0,1.92160102]
[1754952264556,0.0842884,118770.0,118760.0,1.92160102]
[1754952265259,0.0001,118770.0,118760.0,1.92160102]
[1754952266661,0.0001,118770.0,118760.0,1.77205006]
[1754952268358,0.0842885,118770.0,118760.0,1.77205006]
[1754952269760,0.0001,118770.0,118760.0,1.77205006]
[1754952269955,0.0842885,118770.0,118760.0,1.77205006]
[1754952270359,0.0001,118770.0,118760.0,1.77205006]
[1754952272167,0.0842885,118770.0,118760.0,1.77205006]
[1754952272762,0.1078485,118770.0,118760.0,0.99165006]
[1754952272964,0.1078485,118770.0,118760.0,1.77173006]
[1754952273760,0.1413185,118770.0,118760.0,1.77173006]
[1754952275664,0.1078485,118770.0,118760.0,1.77173006]
[1754952275866,0.02366,118770.0,118760.0,1.77173006]
[1754952276165,0.0001,118770.0,118760.0,1.77173006]
[1754952276463,0.0842885,118770.0,118760.0,1.77173006]
[1754952277171,0.0001,118770.0,118760.0,1.77173006]
[1754952277366,0.0842885,118770.0,118760.0,1.77173006]
[1754952278166,0.0001,118770.0,118760.0,1.77173006]
[1754952280265,0.0001,118770.0,118760.0,1.92128102]
[1754952288271,0.0001,118770.0,118760.0,1.92329817]
[1754952292179,0.0001,118770.0,118760.0,1.61669984]
[1754952292379,0.0001,118770.0,118760.0,1.92329817]
[1754952296274,0.0001,118770.0,118760.0,1.77173006]
[1754952297377,0.0001,118770.0,118760.0,2.07832839]
[1754952297581,0.4064908,118790.0,118770.0,0.2525622]
[1754952297782,0.4557008,118790.0,118780.0,1.57848183]
[1754952297981,0.4330508,118790.0,118780.0,1.64676183]
[1754952298283,0.4330508,118790.0,118780.0,1.28596183]
[1754952298480,0.4557008,118790.0,118780.0,1.64676183]
[1754952298777,0.3716181,118790.0,118780.0,1.64676183]
[1754952298976,0.10462,118790.0,118780.0,1.64676183]
[1754952299580,0.10562,118790.0,118780.0,1.64676183]
[1754952300173,0.10762,118790.0,118780.0,1.64676183]
[1754952300373,0.1917964,118790.0,118780.0,1.64676183]
[1754952301179,0.2052564,118790.0,118780.0,1.64676183]
[1754952302190,0.2042564,118790.0,118780.0,1.64676183]
[1754952302677,0.2052564,118790.0,118780.0,1.64676183]
[1754952303487,0.2052564,118790.0,118780.0,1.3401635]
[1754952306179,0.2052564,118790.0,118780.0,0.4923235]
[1754952306386,0.87265473,118790.0,118780.0,0.8635435]
[1754952307486,0.87265473,118790.0,118780.0,0.9172935]
[1754952307679,0.87265473,118790.0,118780.0,0.9335335]
[1754952308283,0.51185473,118790.0,118780.0,0.9335335]
[1754952308487,0.87265473,118790.0,118780.0,0.9791635]
[1754952311386,0.87265473,118790.0,118780.0,0.8887835]
[1754952311690,0.87265473,118790.0,118780.0,0.9335335]
[1754952312191,0.87265473,118790.0,118780.0,0.9556335]
[1754952312489,0.87265473,118790.0,118780.0,0.9791635]
[1754952318090,0.51185473,118790.0,118780.0,0.9791635]
[1754952318497,0.87265473,118790.0,118780.0,0.9791635]
[1754952321897,0.51185473,118790.0,118780.0,0.9791635]
[1754952322196,0.2052564,118790.0,118780.0,0.9791635]
[1754952322692,0.2052564,118790.0,118780.0,0.9556335]
[1754952323000,0.2045464,118790.0,118780.0,1.28692183]
[1754952324702,0.1354864,118790.0,118780.0,1.28692183]
[1754952324896,0.1901464,118790.0,118780.0,1.28692183]
[1754952325799,0.2046764,118790.0,118780.0,1.28692183]
[1754952326402,0.5654764,118790.0,118780.0,0.9803235]
[1754952326603,0.2046764,118790.0,118780.0,0.9803235]
[1754952327103,0.0862764,118790.0,118780.0,1.28692183]
[1754952328404,0.0862764,118790.0,118780.0,1.64772183]
[1754952328599,0.0021,118790.0,118780.0,1.64772183]
[1754952329300,0.0021,118790.0,118780.0,1.81651845]
[1754952331108,0.0021,118790.0,118780.0,1.6650325]
[1754952334406,0.0021,118790.0,118780.0,0.8856725]
[1754952334600,0.1090564,118790.0,118780.0,1.6643125]
[1754952335006,0.1409364,118790.0,118780.0,1.81579845]
[1754952335602,0.1090564,118790.0,118780.0,1.81579845]
[1754952335908,0.02488,118790.0,118780.0,1.6643125]
[1754952336306,0.0021,118790.0,118780.0,1.6643125]
[1754952337109,0.0862764,118790.0,118780.0,1.6643125]
[1754952337409,0.0021,118790.0,118780.0,1.6643125]
[1754952338406,0.0862764,118790.0,118780.0,1.6643125]
[1754952339504,0.2031264,118790.0,118780.0,0.99671417]
[1754952340105,0.0862764,118790.0,118780.0,1.6641125]
[1754952340407,0.0021,118790.0,118780.0,1.6641125]
[1754952340608,0.0021,118790.0,118780.0,1.81559845]
[1754952341400,0.0021,118790.0,118780.0,1.6641125]
[1754952342804,0.0021,118790.0,118780.0,1.66410943]
[1754952343500,0.0021,118790.0,118780.0,1.64680183]
[1754952344207,0.0021,118790.0,118780.0,1.66352707]
[1754952344508,0.0862764,118790.0,118780.0,1.66352707]
[1754952345209,0.1885964,118790.0,118780.0,0.88508707]
[1754952345406,0.2031264,118790.0,118780.0,1.66340707]
[1754952346111,0.2031264,118790.0,118780.0,1.35680874]
[1754952346310,0.2031264,118790.0,118780.0,1.66380286]
[1754952346910,0.2031264,118790.0,118780.0,1.64668183]
[1754952347303,0.2031264,118790.0,118780.0,1.66380286]
[1754952347606,0.0021,118790.0,118780.0,1.66380286]
[1754952348005,0.0021,118790.0,118780.0,1.81528881]
[1754952349816,0.0862764,118790.0,118780.0,1.50869048]
[1754952350113,0.1105664,118790.0,118780.0,1.81528881]
[1754952350910,0.1105664,118790.0,118780.0,1.50869048]
[1754952351113,0.1105664,118790.0,118780.0,1.66380286]
[1754952351302,0.0021,118790.0,118780.0,1.66380286]
[1754952351712,0.0862764,118790.0,118780.0,1.66380286]
[1754952357512,0.0021,118790.0,118780.0,1.66380286]
[1754952358012,0.0862765,118790.0,118780.0,1.66380286]
[1754952359920,0.1105665,118790.0,118780.0,1.66380286]
[1754952360118,0.0862765,118790.0,118780.0,1.66380286]
[1754952360921,0.0862765,118790.0,118780.0,1.81535895]
[1754952362421,0.1105665,118790.0,118780.0,1.81535895]
[1754952365617,0.0862765,118790.0,118780.0,1.81535895]
[1754952365818,0.0021,118790.0,118780.0,1.81535895]
[1754952366428,0.0021,118790.0,118780.0,1.81487895]
[1754952366726,0.0021,118790.0,118780.0,1.66332286]
[1754952367131,0.0021,118790.0,118780.0,1.81469653]
[1754952367825,0.0021,118790.0,118780.0,1.30252286]
[1754952370932,0.0021,118790.0,118780.0,1.45382711]
[1754952371132,0.0021,118790.0,118780.0,1.43677711]
[1754952374526,0.0021,118790.0,118780.0,1.41289711]
[1754952376531,0.0021,118790.0,118780.0,1.26159286]
[1754952379833,0.0021,118790.0,118780.0,1.41289711]
[1754952381338,0.0021,118790.0,118780.0,1.26159286]
[1754952386042,0.0021,118790.0,118780.0,1.41287161]
[1754952386637,0.0021,118790.0,118780.0,1.45077302]
[1754952393959,0.0021,118790.0,118780.0,1.29949427]
[1754952395950,0.0021,118790.0,118780.0,1.45078691]
[1754952397460,0.0021,118790.0,118780.0,0.52165427]
[1754952397755,0.08027,118790.0,118780.0,0.17715453]
[1754952397960,0.50894624,118790.0,118780.0,0.17769453]
[1754952398162,0.50894624,118790.0,118780.0,1.29931427]
[1754952398861,0.1644465,118790.0,118780.0,0.95481453]
[1754952400660,0.1644465,118790.0,118780.0,1.10610717]
[1754952401161,0.08027,118790.0,118780.0,1.41241958]
[1754952401552,0.08027,118790.0,118780.0,1.26112694]
[1754952402363,0.08027,118790.0,118780.0,1.41241958]
[1754952404364,0.06606,118790.0,118780.0,1.41241958]
[1754952405564,0.1502365,118790.0,118780.0,1.41241958]
[1754952405764,0.06606,118790.0,118780.0,1.41241958]
[1754952406364,0.06606,118790.0,118780.0,1.26112694]
[1754952411366,0.06606,118790.0,118780.0,1.41241958]
[1754952412069,0.06606,118790.0,118780.0,1.10610717]
[1754952412269,0.06606,118790.0,118780.0,1.41241958]
[1754952415571,0.07973,118790.0,118780.0,1.41241958]
[1754952416169,0.07973,118790.0,118780.0,1.26112694]
[1754952416573,0.1639065,118790.0,118780.0,1.26068694]
[1754952416770,0.07973,118790.0,118780.0,0.95437453]
[1754952416967,0.07973,118790.0,118780.0,1.26068694]
[1754952417473,0.1639065,118790.0,118780.0,1.26068694]
[1754952418674,0.1639065,118790.0,118780.0,1.29894665]
[1754952419275,0.1639065,118790.0,118780.0,1.45023929]
[1754952420070,0.50847862,118790.0,118780.0,1.45023929]
[1754952420874,0.50847862,118790.0,118780.0,1.29894665]
[1754952421272,0.50847862,118790.0,118780.0,0.95437453]
[1754952421472,0.50847862,118790.0,118780.0,1.29894665]
[1754952421673,0.1639065,118790.0,118780.0,1.29894665]
[1754952423082,0.1502365,118790.0,118780.0,1.29894665]
[1754952423477,0.1502365,118790.0,118780.0,0.95437453]
[1754952423679,0.1502365,118790.0,118780.0,1.29894665]
[1754952425882,0.1502365,118790.0,118780.0,1.45023929]
[1754952428281,0.1502365,118790.0,118780.0,1.29894665]
[1754952428681,0.49480862,118790.0,118780.0,1.29894665]
[1754952429785,0.1502365,118790.0,118780.0,1.29894665]
[1754952431084,0.1502365,118790.0,118780.0,1.45022644]
[1754952433285,0.1169765,118790.0,118780.0,1.45022644]
[1754952433491,0.0862765,118790.0,118780.0,1.45022644]
[1754952434587,0.0862765,118790.0,118780.0,1.47301644]
[1754952436580,0.0862765,118790.0,118780.0,1.32173665]
[1754952437088,0.0021,118790.0,118780.0,1.32173665]
[1754952437388,0.0021,118790.0,118780.0,1.47301644]
[1754952445799,0.00146539,118810.0,118800.0,0.0841694]
[1754952445999,0.00146539,118810.0,118800.0,1.66107364]
[1754952447897,0.00346539,118810.0,118800.0,1.66107364]
[1754952448093,0.00356539,118810.0,118800.0,1.66107364]
[1754952448289,0.0021,118810.0,118800.0,1.67823995]
[1754952448792,0.0021,118810.0,118800.0,1.82951974]
[1754952453596,0.0021,118810.0,118800.0,1.67823995]
[1754952454305,0.0021,118810.0,118800.0,1.82951974]
[1754952456905,0.0021,118810.0,118800.0,1.67823995]
[1754952458103,0.55032442,118810.0,118800.0,0.98877571]
[1754952458307,0.55032442,118810.0,118800.0,1.33334783]
[1754952458499,0.2057523,118810.0,118800.0,1.33334783]
[1754952458699,0.1575523,118810.0,118800.0,1.67791995]
[1754952463992,0.0021,118810.0,118800.0,1.67791995]
[1754952464701,0.0862623,118810.0,118800.0,1.67791995]
[1754952466905,0.18687128,118830.0,118820.0,0.0841553]
[1754952467111,0.29212128,118830.0,118820.0,1.32173538]
[1754952467408,0.30636128,118830.0,118820.0,1.32173538]
[1754952467608,0.17400718,118830.0,118820.0,1.32173538]
[1754952470007,0.20552718,118830.0,118820.0,1.32173538]
[1754952470208,0.1871622,118830.0,118820.0,1.32173538]
[1754952470711,0.1871622,118830.0,118820.0,1.28323701]
[1754952471015,0.2017922,118830.0,118820.0,1.28323701]
[1754952471401,0.2017922,118830.0,118820.0,1.29704873]
[1754952472207,0.1871622,118830.0,118820.0,1.29704873]
[1754952472409,0.10301,118830.0,118820.0,1.29704873]
[1754952473308,0.07149,118830.0,118820.0,1.29704873]
[1754952474008,0.02447,118830.0,118820.0,1.29704873]
[1754952476807,0.0002,118830.0,118820.0,1.29704873]